Cogmind - Beta 9.6 @@@ ROGUE MODE // 2020.08.27 @ 20:14:35 Player: Cracklepappy Result: Destroyed by G-34 Mercenary with Small Laser Performance ------------- Evolutions (0) 0 Regions Visited (1) 200 Robots Destroyed (26) 130 Value Destroyed (630) 630 Prototype IDs (0) 0 Alien Tech Used (0) 0 Bonus (0) 0 TOTAL SCORE: 960 Bonus ------- None Cogmind --------- Core Integrity 0/250 Matter 279/300 Energy 250/250 System Corruption 0% Temperature Cool (16) Movement Treading (180) Ox1 Location -10/Materials Parts ------- > --- POWER (1) -------- Ion Engine > --- PROPULSION (2) --- Light Treads Light Treads > --- UTILITY (2) ------ High-capacity Storage Unit High-capacity Storage Unit > --- WEAPON (2) ------- Small Laser Light Assault Rifle > --- INVENTORY (20) --- Compact Wheel Compact Wheel Compact Wheel Compact Wheel Compact Wheel Compact Wheel Heat Sink Heat Sink Improved Heat Sink Small Storage Unit Large Storage Unit High-capacity Matter Pod (200) Signal Interpreter Signal Interpreter Improved Terrain Scanner EM Pulse Gun Small Laser Mining Laser Welding Torch Welding Torch Peak State ------------ > --- POWER ------------ Light Ion Engine > --- PROPULSION ------- Compact Wheel Compact Wheel > --- UTILITY ---------- High-capacity Storage Unit Improved Terrain Scanner > --- WEAPON ----------- EM Pulse Gun Light Assault Rifle > --- INVENTORY -------- Ion Engine Light Ion Engine Light Treads Light Treads Compact Wheel Compact Wheel Small Storage Unit Medium Matter Pod Mining Laser Welding Torch [Rating: 9] Favorites ----------- Power Light Ion Engine Engine Light Ion Engine Propulsion Compact Wheel Treads Light Treads Wheel Compact Wheel Utility High-capacity Storage Unit Device Improved Terrain Scanner Storage High-capacity Storage Unit Weapon Light Assault Rifle Energy Gun Small Laser Ballistic Gun Light Assault Rifle Special Weapon Mining Laser Build | -11 -10 ------- Run | Scr Mat Slots Evolved . | . . Power . | . . Propulsion . | . . Utility . | . . Weapon . | . . Parts Attached 33 | 9 24 Power 5 | 1 4 Engine 5 | 1 4 Core . | . . Reactor . | . . Propulsion 10 | 4 6 Treads 5 | 2 3 Leg . | . . Wheel 5 | 2 3 Hover . | . . Flight . | . . Utility 5 | 2 3 Device 1 | 1 . Storage 4 | 1 3 Processor . | . . Hackware . | . . Protection . | . . Artifact . | . . Weapon 13 | 2 11 Energy Gun 6 | 1 5 Energy Cannon . | . . Ballistic Gun 6 | 1 5 Ballistic Cannon . | . . Launcher . | . . Special Weapon 1 | . 1 Impact Weapon . | . . Slashing Weapon . | . . Piercing Weapon . | . . Special Melee Weapon . | . . Unidentified Prototypes . | . . Parts Lost 15 | . 15 Power 3 | . 3 Propulsion 5 | . 5 Utility . | . . Weapon 7 | . 7 Highest Loss Streak 5 | . 5 Average Slot Usage (%) 94 | . 94 Engine 12 | . 12 Treads 10 | . 10 Wheel 15 | . 15 Device 1 | . 1 Storage 26 | . 26 Energy Gun 13 | . 13 Ballistic Gun 13 | . 13 Naked Turns . | . . Heaviest Build 71 | 11 71 Greatest Support 40 | 40 40 Greatest Overweight (x) 4 | . 4 Average Overweight (x) 1 | . 1 Largest Inventory Capacity 20 | 6 20 Average Capacity 15 | 5 17 Most Carried 20 | 6 20 Average Carried 12 | 4 14 Final Capacity 20 | 6 20 Final Carried 20 | 6 20 Class Distribution -------------------- 61% | Hauler-Mutant 34% | Mutant 4% | Scavenger-Mutant Dominant Class ---------------- Hauler-Mutant | -10/Materials Resources | -11 -10 ----------- Run | Scr Mat Matter Collected 852 | 290 562 Remotely . | . . Salvage Created 845 | 157 688 Parts 56 | 12 44 Haulers Intercepted . | . . Recyclers Shooed . | . . Parts Field Recycled . | . . Retrieved Matter . | . . Parts Self-Destructed . | . . Prevented . | . . Kills | -11 -10 ------- Run | Scr Mat Combat Hostiles Destroyed 21 | . 21 Guns 20 | . 20 AOE 1 | . 1 Classes Destroyed 4 | 2 2 Tunneler 4 | 4 . Recycler 1 | 1 . Swarmer 6 | . 6 Grunt 15 | . 15 Best Kill Streak 4 | 2 4 Combat Bots Only 4 | . 4 Max Kills in Single Turn 2 | 1 2 Gunslinging . | . . Exploded 1 | . 1 Melee . | . . Uniques/NPCs Destroyed . | . . Combat | -11 -10 -------- Run | Scr Mat Damage Taken 1361 | . 1361 Core 255 | . 255 Absorbed by Shields . | . . Core Remaining (%) 100 | 100 . Volleys Fired 117 | 16 101 Largest 2 | 1 2 Hottest 100 | 40 100 Shots Fired 190 | 16 174 Gun 188 | 16 172 Cannon . | . . Launcher . | . . Special 2 | . 2 Kinetic 103 | . 103 Thermal 51 | . 51 Explosive . | . . Electromagnetic 36 | 16 20 Robot Hit Streak 13 | 3 13 Robot Miss Streak 4 | 3 4 Penetration Max . | . . Secondary Targets 4 | . 4 Max Gunslinging Chain 1 | . 1 Shots Hit Robots 126 | 9 117 Core Hits 51 | 6 45 Critical Hits . | . . Critical Kills . | . . Critical Parts Destroyed . | . . Melee Attacks . | . . Impact . | . . Slashing . | . . Piercing . | . . Sneak Attacks . | . . Combat Hostiles . | . . Follow-up Attacks . | . . Damage Inflicted 1294 | 106 1188 Guns 1185 | 106 1079 Cannons . | . . Explosions 101 | . 101 Melee . | . . Ramming 8 | . 8 Kinetic 515 | . 515 Thermal 504 | . 504 Explosive . | . . Electromagnetic 267 | 106 161 Impact . | . . Slashing . | . . Piercing . | . . Highest Corruption . | . . Average Corruption . | . . Corruption Purged . | . . Overload Shots . | . . Overflow Damage . | . . Projectiles . | . . Explosions . | . . Melee . | . . Knockbacks . | . . Impact . | . . Kinetic . | . . Secondary . | . . Self-Inflicted Damage 32 | . 32 Shots 1 | . 1 Rammed 1 | . 1 Targets Rammed 1 | . 1 Kicked . | . . Crushed . | . . Highest Temperature 228 | . 228 Average Temperature 51 | . 51 Received Heat Transfer 660 | . 660 Siege Activations . | . . Robots Corrupted . | . . Combat Hostiles . | . . Parts Fried . | . . Impact Corruptions . | . . Robots Melted . | . . Combat Hostiles . | . . Parts Melted 2 | . 2 Heat Transferred 1025 | . 1025 Parts Sabotaged . | . . Parts Stolen . | . . Parts Stripped . | . . Power Chain Reactions 1 | . 1 Missiles Intercepted . | . . Alert | -11 -10 ------- Run | Scr Mat Peak Influence 283 | 25 283 Average Influence 99 | 8 117 Maximum Alert Level 1 | . 1 Low Security (%) 88 | 100 86 Level 1 11 | . 13 Level 2 . | . . Level 3 . | . . Level 4 . | . . Level 5 . | . . High Security . | . . Max Security . | . . Squads Dispatched 6 | . 6 Investigation 5 | . 5 Extermination . | . . Reinforcement 1 | . 1 Assault . | . . Garrison . | . . Intercept . | . . Construction Impeded . | . . Haulers Reinforced . | . . Stealth | -11 -10 --------- Run | Scr Mat Distress Signals 3 | . 3 Communications Jammed . | . . Distress Signals . | . . Times Spotted 38 | . 38 Peak Tracking Total 4 | . 4 Tactical Retreats 3 | . 3 Traps | -11 -10 ------- Run | Scr Mat Traps Triggered 2 | . 2 Indirectly . | . . Trap Hack Attempts . | . . Triggered . | . . Disarmed . | . . Reprogrammed . | . . Reused . | . . Traps Extracted . | . . Installed . | . . Triggered . | . . Machines | -11 -10 ---------- Run | Scr Mat Machines Disabled 1 | . 1 Max in Single Turn 1 | . 1 Machines Sabotaged . | . . Garrisons Compromised . | . . Overloaded Fab Kills . | . . Fab Network Shutdowns . | . . Hacking | -11 -10 --------- Run | Scr Mat Machines Accessed 10 | . 10 Terminals 7 | . 7 Fabricators . | . . Repair Stations 1 | . 1 Recycling Units 2 | . 2 Scanalyzers . | . . Garrison Access . | . . Total Hacks 27 | . 27 Successful 9 | . 9 Failed 18 | . 18 Catastrophic 4 | . 4 Database Lockouts . | . . Manual 15 | . 15 Terminals 23 | . 23 Fabricators . | . . Repair Stations 1 | . 1 Recycling Units 3 | . 3 Scanalyzers . | . . Garrison Access . | . . Terminal Hacks 6 | . 6 Part Schematic 1 | . 1 Unreport Threat 1 | . 1 Locate Traps 1 | . 1 Recall Investigation 1 | . 1 Hauler Manifests 1 | . 1 Zone Layout 1 | . 1 Fabricator Hacks . | . . Repair Station Hacks 1 | . 1 Scan Component 1 | . 1 Recycling Unit Hacks . | . . Scanalyzer . | . . Garrison Access Hacks . | . . Unauthorized Hacks 2 | . 2 Terminals . | . . Fabricators . | . . Repair Stations . | . . Recycling Units 2 | . 2 Tunnel 2 | . 2 Scanalyzers . | . . Garrison Access . | . . Data Cores Recovered . | . . Used . | . . Hacking Detections 7 | . 7 Full Trace Events 2 | . 2 Feedback Events . | . . Feedback Blocked . | . . Robot Schematics Acquired . | . . Robots Built . | . . Matter . | . . Time . | . . Total Robot Build Rating . | . . Part Schematics Acquired 1 | . 1 Parts Built . | . . Matter . | . . Time . | . . Total Part Build Rating . | . . Parts Repaired . | . . Time . | . . Parts Recycled . | . . Recycled Matter . | . . Retrieved Matter . | . . Retrieved Components . | . . Parts Scanalyzed . | . . Part Schematics Acquired . | . . Parts Damaged . | . . Bothacking | -11 -10 ------------ Run | Scr Mat Used RIF Installer . | . . Robots Hacked . | . . Non-combat . | . . Combat . | . . Robot Hacks Applied . | . . Relay Couplers Released . | . . Robots Rewired . | . . Allies Hacked . | . . Hacks Repelled . | . . Allies | -11 -10 -------- Run | Scr Mat Total Allies . | . . Largest Group . | . . Highest-Rated Group . | . . Highest-Rated Ally . | . . Total Orders . | . . Ally Attacks . | . . Total Damage . | . . Kills . | . . Allies Corrupted . | . . Allies Melted . | . . Intel | -11 -10 ------- Run | Scr Mat Robot Analysis Total . | . . Derelict Logs Recovered . | . . Drone Launches . | . . Drone Recoveries . | . . Exploration | -11 -10 ------------- Run | Scr Mat Turns Passed 1365 | 223 1142 Spaces Moved 665 | 130 535 Core 7 | 7 . Treads 210 | 70 140 Legs . | . . Wheels 448 | 53 395 Hover . | . . Flight . | . . Fastest Speed 50 | 50 100 Average Speed 135 | 129 137 Slowest Speed 220 | 160 220 Overloaded Moves . | . . Propulsion Burnouts . | . . Robots Hopped . | . . Cave-ins Triggered . | . . Exploration Rate (%) 49 | 9 90 Regions Visited 1 Branch Regions . Pre-discovered Areas 2 | . 2 Known Exits Taken . | . . Unknown Exits Taken 1 | 1 . Scrap Searched . | . . Spaces Dug 2 | . 2 Terrain Destroyed 7 | . 7 Melee . | . . Projectile 2 | . 2 AOE 5 | . 5 Actions | -11 -10 --------- Run | Scr Mat Total 948 | 166 782 Wait 92 | . 92 Move 664 | 129 535 Hop . | . . Pick Up 36 | 11 25 Fast Attach 7 | 3 4 Attach 16 | 4 12 Detach 1 | . 1 Swap 10 | 2 8 Drop 4 | 1 3 Fire 117 | 16 101 Melee . | . . Ram 1 | . 1 Kick . | . . Crush . | . . Escape Stasis . | . . Rewire . | . . Trap . | . . Miscellaneous . | . . Route ------- -11/Scrapyard -10/Materials (discovered 3 exits: [*Mat] / [*Min x2]) History --------- Turn | Location | Event 37 | -11/Scrapyard | Discovered new exit (range 15) 224 | -11/Scrapyard | Entered Materials 307 | -10/Materials | Build established: Mutant 321 | -10/Materials | Discovered new exit (range 19) 629 | -10/Materials | Lost 4 parts (1p1n2w) 745 | -10/Materials | Discovered new exit (range 3) 822 | -10/Materials | Core integrity fell below 50% 856 | -10/Materials | Build established: Hauler-Mutant 893 | -10/Materials | Lost 5 parts (1p2n2w) 964 | -10/Materials | Core integrity fell below 20% 1093 | -10/Materials | Discovered new exit (range 6) 1175 | -10/Materials | Lost 4 parts (1p1n2w) 1366 | -10/Materials | Destroyed by G-34 Mercenary with Small Laser Last Messages --------------- 01153_ Acquired 1 matter. 01159_ Acquired Sml. Laser. 01160_ R-06 Scavenger collects Aluminum Leg. 01166_ U-05 Engineer lays Concrete. 01205_ Acquired Com. Wheel. 01260_ Connecting with Recycling Unit... >>Force(Tunnel) DISCOVERED[-9/Recycling] 01260_ ALERT: Suspicious activity at Recycling Unit M001. Dispatching Investigation squad. 01272_ W-16 Scout sends out distress signal. 01283_ Connecting with Terminal... >>Recall(Investigation) Establishing remote squad link... Recalled investigation squad 8W3197M8LC. 01333_ Acquired Lgt. Treads. 01341_ Connecting with Terminal... 01354_ Triggered Alarm Trap. 01354_ An alarm sounds. 01354_ ALERT: Alarm triggered, dispatching investigation squad. Map ----- +----------------------------------------------------+ | #####??# # #??????? | | ####### # """ #??????? | | # "Y #??????? | | " # """ #??????? | | """ # #??????? | | ###### "" # ! #??????? | | /#####??# """ #########?????? | | %% #??# "" T #?????? | | """#??? """ #?????? | | """#??? """ #?????? | | """#????? """ !! #?????? | | #??? " !! #?????? | | """#??# !! #?????? | | """#??? #?????? | | """#???###+####### #?????? | | #????# # ######?????? | | #+####????# ""# #??????????? | | ? #???????# T"# #??????????? | | ? #???????# ""# #??????????? | | ? #???????# + #??????????? | | ? ????????# """ # ########???? | | ? ????????# """ # ## #???? | | ? ????????# """ # #???? | | ??????????# # #???? | | ??????????########## #???? | | ???????????????????###+##@ #???? | | ???????????????????? ##g ##???? | | ?????????????????? #? #????? | | ?????????????????#!!! #? #????? | | ?????????????????#!!! #? #????? | | ?????????????????#!!! #?? #????? | | ?????????????????# #?? #????? | | ?????????????????########?? #????? | | ??????????????????????????? #????? | | ???????????????????????????? #????? | | ???????????????????????????? #????? | | ????????????????????????????##????? | | ??????????????????????????????????? | | ??????????????????????????????????? | | ??????????????????????????????????? | | ??????????????????????????????????? | | ??????????????????????????????????? | | ??????????????????????????????????? | | ??????????????????????????????????? | | ??????????????????????????????????? | | ??????????????????????????????????? | | | | | | | | | +----------------------------------------------------+ Best States ------------- Heat Dissipation 25 Energy Generation 10 Energy Capacity 250 Matter Stores 300 Matter Capacity 300 Sight Range 16 Terrain Scan Range 16 Terrain Scan Density 10 Evasion (%) 40 Recoil Reduction 2 Item Schematics ----------------- Hcp. Storage Unit | -10/Materials | Hacked Robot Schematics ------------------ None Fabricated ------------ Nothing Alien Tech Used ----------------- None Achievements -------------- None Challenges ------------ None Game ------ Seed MetafiberDeepCleaver Manual? 0 Play Time 00:14:55 Cumulative 139.6 hours Start 2020.08.27 @ 20:01:47 End 2020.08.27 @ 20:14:35 Sessions 1 Manual Loads 0 Difficulty Rogue Special Mode None Game No. 172 Rogue 172 Adventurer 0 Explorer 0 Win Type - Total 2 Types 2/0/0/0/0/0/0 Lore% 51 Gallery% 68 Achievement% 49 Wizard Run 0 Options --------- ASCII 0 Keyboard 0 Movement Numpad Keybinds 0 Fullscreen 2 Font 24/Smallcaps Map View 76x50 Tactical HUD 1 Map Filters NONE Filters NONE Steam 1 RUN: 241c648e-f630-4819-8e07-03ff673aef81